fUSD/lending_fUSD_20240629
["ID","MTS","AMOUNT","RATE_DAILY","PERIOD"]
[330645892,1719684648464,-500.0,0.00013995,3]
[330645893,1719684648474,-1344.79,0.00013995,3]
[330645894,1719684648484,-500.0,0.00013995,3]
[330645895,1719684648494,-500.0,0.00013995,3]
[330645896,1719684648504,-500.0,0.00013995,3]
[330645897,1719684648513,-1666.43,0.00013995,3]
[330645898,1719684648528,-855.34,0.00013995,3]
[330645899,1719684648538,-500.0,0.00013995,3]
[330645900,1719684648547,-2401.2,0.00013995,3]
[330645901,1719684648557,-1463.95,0.00013995,3]
[330645902,1719684648569,-500.0,0.00013995,3]
[330645903,1719684648578,-500.0,0.00013995,3]
[330645904,1719684648587,-1303.92,0.00013995,3]
[330645905,1719684648599,-500.0,0.00013995,3]
[330645906,1719684648609,-500.0,0.00013995,3]
[330645907,1719684648622,-500.0,0.00013995,3]
[330645908,1719684648632,-2910.99,0.00013995,3]
[330645909,1719684648642,-500.0,0.00013995,3]
[330645910,1719684648653,-1078.69,0.00013995,3]
[330645911,1719684648662,-500.0,0.00013995,3]
[330645912,1719684648672,-500.0,0.00013995,3]
[330645913,1719684648680,-570.03,0.00013995,3]
[330645914,1719684648691,-500.0,0.00013995,3]
[330645915,1719684648700,-500.0,0.00013995,3]
[330645916,1719684648710,-500.0,0.00013995,3]
[330645917,1719684648719,-500.0,0.00013995,3]
[330645918,1719684648728,-1269.56,0.00013995,3]
[330645919,1719684648738,-500.0,0.00013995,3]
[330645920,1719684648747,-1762.97,0.00013995,3]
[330645921,1719684648756,-500.0,0.00013995,3]
[330645922,1719684648765,-500.0,0.00013995,3]
[330645923,1719684648774,-500.0,0.00013995,3]
[330645924,1719684648783,-500.0,0.00013995,3]
[330645925,1719684648793,-500.0,0.00013995,3]
[330645926,1719684648802,-500.0,0.00013995,3]
[330645927,1719684648813,-500.0,0.00013995,3]
[330645928,1719684648822,-667.68,0.00013995,3]
[330645929,1719684648831,-965.33,0.00013995,3]
[330645930,1719684648841,-398.31521413,0.00013995,3]
[330645931,1719684648851,-500.0,0.00013995,3]
[330645932,1719684648861,-2580.42,0.00013995,3]
[330645933,1719684648871,-1922.55,0.00013995,3]
[330645934,1719684648881,-500.0,0.00013995,3]
[330645935,1719684648890,-844.45,0.00013995,3]
[330645936,1719684648900,-2224.99,0.00013995,3]
[330645937,1719684648911,-500.0,0.00013995,3]
[330645938,1719684648920,-500.0,0.00013995,3]
[330645939,1719684648929,-500.0,0.00013995,3]
[330645940,1719684648939,-500.0,0.00013995,3]
[330645941,1719684648948,-151.0,0.00013995,2]
[330645942,1719684648957,-974.0,0.00013995,3]
[330645943,1719684648967,-615.47,0.00013995,3]
[330645944,1719684648976,-1192.15,0.00013995,3]
[330645945,1719684648985,-500.0,0.00013995,3]
[330645946,1719684648994,-500.0,0.00013995,3]
[330645947,1719684649003,-1448.28,0.00013995,3]
[330645948,1719684649012,-745.79,0.00013995,3]
[330645949,1719684649020,-500.0,0.00013995,3]
[330645950,1719684649029,-2399.12,0.00013995,3]
[330645951,1719684649038,-1606.25,0.00013995,3]
[330645952,1719684649047,-512.57,0.00013995,3]
[330645953,1719684649056,-1061.34,0.00013995,3]
[330645954,1719684649066,-500.0,0.00013995,3]
[330645955,1719684649075,-1421.27,0.00013995,3]
[330645956,1719684649086,-1917.06,0.00013995,3]
[330645957,1719684649097,-500.0,0.00013995,3]
[330645958,1719684649107,-500.0,0.00013995,3]
[330645959,1719684649116,-1508.99,0.00013995,3]
[330645960,1719684649125,-500.0,0.00013995,3]
[330645961,1719684649135,-504.38,0.00013995,3]
[330645962,1719684649144,-1628.6,0.00013995,3]
[330645963,1719684649154,-876.26,0.00013995,3]
[330645964,1719684649164,-151.0,0.00013995,2]
[330645965,1719684649173,-1470.96,0.00013995,3]
[330645966,1719684649182,-151.0,0.00013995,2]
[330645967,1719684649192,-1641.91,0.00013995,3]
[330645968,1719684649201,-500.0,0.00013995,3]
[330645969,1719684649210,-500.0,0.00013995,3]
[330645970,1719684649220,-1092.98,0.00013995,3]
[330645971,1719684649229,-533.93,0.00013995,3]
[330645972,1719684649239,-500.0,0.00013995,3]
[330645973,1719684649248,-500.0,0.00013995,2]
[330645974,1719684649257,-563.4,0.00013995,3]
[330645975,1719684649267,-1360.3,0.00013995,3]
[330645976,1719684649277,-713.44,0.00013995,3]
[330645977,1719684649287,-629.7,0.00013995,3]
[330645978,1719684649297,-500.0,0.00013995,3]
[330645979,1719684649306,-1278.96,0.00013995,3]
[330645980,1719684649319,-500.0,0.00013995,3]
[330645981,1719684649328,-1771.26,0.00013995,3]
[330645982,1719684649337,-500.0,0.00013995,3]
[330645983,1719684649347,-500.0,0.00013995,3]
[330645984,1719684649356,-798.7,0.00013995,3]
[330645985,1719684649367,-500.0,0.00013995,3]
[330645986,1719684649376,-1060.98,0.00013995,3]
[330645987,1719684649387,-520.1,0.00013995,3]
[330645988,1719684649397,-500.0,0.00013995,3]
[330645989,1719684649406,-500.0,0.00013995,3]
[330645990,1719684649416,-500.0,0.00013995,3]
[330645991,1719684649426,-500.0,0.00013995,3]
[330645992,1719684649436,-500.0,0.00013995,3]
[330645993,1719684649445,-2463.84,0.00013995,3]
[330645994,1719684649455,-500.0,0.00013995,3]
[330645995,1719684649465,-7044.05,0.00013995,3]
[330645996,1719684649475,-922.18,0.00013995,3]
[330645997,1719684649486,-4836.58,0.00013995,3]
[330645998,1719684649496,-619.26,0.00013995,3]
[330645999,1719684649506,-1489.4,0.00013995,3]
[330646000,1719684649517,-598.78,0.00013995,3]
[330646001,1719684649531,-500.0,0.00013995,3]
[330646002,1719684649541,-5172.56,0.00013995,3]
[330646003,1719684649552,-500.0,0.00013995,3]
[330646004,1719684649564,-500.0,0.00013995,3]
[330646005,1719684649578,-651.33,0.00013995,3]
[330646006,1719684649587,-500.0,0.00013995,3]
[330646007,1719684649600,-12628.09,0.00013995,3]
[330646008,1719684649609,-500.0,0.00013995,3]
[330646009,1719684649617,-500.0,0.00013995,3]
[330646010,1719684649626,-500.0,0.00013995,3]
[330646011,1719684649635,-874.43,0.00013995,3]
[330646012,1719684649644,-656.3,0.00013995,3]
[330646013,1719684649654,-658.16,0.00013995,3]
[330646014,1719684649663,-25706.38,0.00013995,3]
[330646015,1719684649671,-500.0,0.00013995,3]
[330646016,1719684649680,-500.0,0.00013995,3]
[330646017,1719684649689,-699.72,0.00013995,3]
[330646018,1719684649699,-500.0,0.00013995,3]
[330646019,1719684649708,-2229.85,0.00013995,3]
[330646020,1719684649718,-541.23,0.00013995,3]
[330646021,1719684649728,-500.0,0.00013995,3]
[330646022,1719684649739,-1682.79,0.00013995,3]
[330646023,1719684649750,-1379.7,0.00013995,3]
[330646024,1719684649760,-1936.33,0.00013995,3]
[330646025,1719684649771,-595.25,0.00013995,3]
[330646026,1719684649780,-3322.6,0.00013995,3]
[330646027,1719684649790,-500.0,0.00013995,3]
[330646028,1719684649799,-5559.16,0.00013995,3]
[330646029,1719684649809,-500.0,0.00013995,3]
[330646030,1719684649824,-500.0,0.00013995,3]
[330646031,1719684649833,-151.0,0.00013995,2]
[330646032,1719684649843,-500.0,0.00013995,3]
[330646033,1719684649852,-923.11,0.00013995,3]
[330646034,1719684649862,-500.0,0.00013995,3]
[330646035,1719684649871,-500.0,0.00013995,3]
[330646036,1719684649881,-151.0,0.00013995,2]
[330646037,1719684649890,-3590.46,0.00013995,3]
[330646038,1719684649899,-500.0,0.00013995,3]
[330646039,1719684649908,-651.56,0.00013995,3]
[330646040,1719684649918,-693.16,0.00013995,3]
[330646041,1719684649928,-1101.26,0.00013995,3]
[330646042,1719684649939,-3574.94,0.00013995,3]
[330646043,1719684649950,-2292.09,0.00013995,3]
[330646044,1719684649960,-493.508557,0.00013995,2]
[330646045,1719684649972,-453.64937362,0.00013995,3]
[330646046,1719684649981,-6971.81,0.00013995,3]
[330646047,1719684649992,-672.93,0.00013995,3]
[330646048,1719684650002,-493.508557,0.00013995,2]
[330646049,1719684650011,-6772.13,0.00013995,3]
[330646050,1719684650021,-656.99,0.00013995,3]
[330646051,1719684650031,-151.0,0.00013995,2]
[330646052,1719684650041,-962.75,0.00013995,3]
[330646053,1719684650051,-1275.98,0.00013995,3]
[330646054,1719684650061,-500.0,0.00013995,3]
[330646055,1719684650072,-724.52,0.00013995,3]
[330646056,1719684650081,-500.0,0.00013995,3]
[330646057,1719684650091,-832.46,0.00013995,3]
[330646058,1719684650101,-500.0,0.00013995,3]
[330646059,1719684650110,-500.0,0.00013995,3]
[330646060,1719684650119,-640.27,0.00013995,3]
[330646061,1719684650128,-795.67,0.00013995,3]
[330646062,1719684650137,-500.0,0.00013995,3]
[330646063,1719684650146,-500.0,0.00013995,3]
[330646064,1719684650155,-5698.08,0.00013995,3]
[330646065,1719684650163,-1578.61,0.00013995,3]
[330646066,1719684650172,-500.0,0.00013995,3]
[330646067,1719684650181,-500.0,0.00013995,3]
[330646068,1719684650190,-1066.2,0.00013995,3]
[330646069,1719684650200,-623.54,0.00013995,3]
[330646070,1719684650209,-847.78,0.00013995,3]
[330646071,1719684650218,-769.11,0.00013995,3]
[330646072,1719684650228,-256.272858,0.00013995,2]
[330646073,1719684650238,-256.272858,0.00013995,2]
[330646074,1719684650249,-500.0,0.00013995,3]
[330646075,1719684650258,-151.0,0.00013995,2]
[330646076,1719684650268,-2916.50174804,0.00013995,3]
[330646078,1719684650984,-466.51281727,0.00013995,3]
[330646079,1719684650995,-1594.4435325,0.00013995,3]
[330646080,1719684651006,-613.10258372,0.00013995,3]
[330646081,1719684651018,-161.33931847,0.00013995,3]
[330646082,1719684651027,-500.0,0.00013995,3]
[330646083,1719684651038,-120.59388257,0.00013995,3]
[330646084,1719684651149,-2227.86611743,0.00013995,3]
[330646085,1719684651159,-1336.67,0.00013995,3]
[330646086,1719684651167,-500.0,0.00013995,3]
[330646087,1719684651177,-1101.01,0.00013995,3]
[330646088,1719684651186,-151.0,0.00013995,2]
[330646089,1719684651195,-1096.53,0.00013995,3]
[330646090,1719684651204,-2633.25,0.00013995,3]
[330646091,1719684651214,-630.63,0.00013995,3]
[330646092,1719684651223,-1512.14,0.00013995,3]
[330646093,1719684651232,-500.0,0.00013995,3]
[330646094,1719684651241,-1106.9,0.00013995,3]
[330646095,1719684651250,-500.0,0.00013995,3]
[330646096,1719684651259,-1338.31,0.00013995,2]
[330646097,1719684651268,-150.0,0.00013995,2]
[330646098,1719684651277,-500.0,0.00013995,3]
[330646099,1719684651286,-2502.9,0.00013995,3]
[330646100,1719684651295,-1315.67,0.00013995,3]
[330646101,1719684651305,-500.0,0.00013995,3]
[330646102,1719684651314,-2785.69,0.00013995,3]
[330646103,1719684651324,-1156.52,0.00013995,3]
[330646104,1719684651334,-1937.86,0.00013995,3]
[330646105,1719684651343,-620.18,0.00013995,3]
[330646106,1719684651352,-715.62,0.00013995,3]
[330646107,1719684651361,-674.4,0.00013995,3]
[330646108,1719684651371,-1004.42,0.00013995,3]
[330646109,1719684651380,-151.0,0.00013995,2]
[330646110,1719684651389,-500.0,0.00013995,3]
[330646111,1719684651399,-576.4,0.00013996,3]
[330646112,1719684651408,-2747.79,0.00013996,3]
[330646113,1719684651418,-667.08,0.00013996,3]
[330646114,1719684651427,-1287.18,0.00013996,3]
[330646115,1719684651436,-643.53,0.00013996,3]
[330646116,1719684651445,-2926.35,0.00013996,3]
[330646117,1719684651455,-1662.94,0.00013996,3]
[330646118,1719684651464,-3739.31,0.00013996,3]
[330646119,1719684651474,-1266.46,0.00013996,3]
[330646120,1719684651485,-1282.49,0.00013996,3]
[330646121,1719684651495,-8460.85,0.00013996,3]
[330646122,1719684651504,-500.0,0.00013996,3]
[330646123,1719684651513,-4727.37,0.00013996,3]
[330646124,1719684651528,-1856.91,0.00013996,3]
[330646125,1719684651537,-2198.82,0.00013996,3]
[330646126,1719684651547,-1948.76051868,0.00013996,3]
[330646127,1719684651561,-257.0,0.00013996,3]
[330646128,1719684651793,-518.34,0.00013885,3]
[330646129,1719684651803,-1936.60273917,0.00013996,3]
[330646130,1719684651817,-1352.74328221,0.00013996,3]
[330646131,1719684652654,-500.0,0.00013885,3]
[330646132,1719684652663,-215.36994382,0.00013886,3]
[330646133,1719684652675,-284.63005618,0.00013886,3]
[330646134,1719684652684,-4108.69,0.00013886,3]
[330646135,1719684652694,-395.68670851,0.00013989,2]
[330646136,1719684652703,-518.34,0.00013995,3]
[330646137,1719684652712,-1497.15345994,0.00013996,3]
[330646138,1719684652722,-500.0,0.00013996,3]
[330646139,1719684652731,-2549.83,0.00013996,3]
[330646140,1719684652740,-500.0,0.00013996,3]
[330646141,1719684652749,-5374.55,0.00013996,3]
[330646142,1719684652759,-881.6,0.00013996,3]
[330646143,1719684652769,-500.0,0.00013996,3]
[330646144,1719684652778,-178.280932,0.00013996,2]
[330646145,1719684652787,-178.280932,0.00013996,2]
[330646146,1719684652797,-1647.52,0.00013996,3]
[330646147,1719684652807,-4393.8,0.00013996,3]
[330646148,1719684652816,-589.93,0.00013996,3]
[330646149,1719684652826,-413.9562631,0.00013996,3]
[330646150,1719684652838,-86.0437369,0.00013996,3]
[330646151,1719684652847,-151.0,0.00013996,2]
[330646152,1719684652857,-694.08905269,0.00013996,3]
[330646153,1719684652958,-650.36277005,0.00013996,3]
[330646154,1719684652970,-656.8979232,0.00013996,3]
[330646155,1719684652981,-1246.98025406,0.00013996,3]
[330646156,1719684652991,-500.0,0.00013996,3]
[330646157,1719684653002,-151.0,0.00013996,2]
[330646158,1719684653011,-2755.8489343,0.00013996,3]
[330646159,1719684653023,-681.6310657,0.00013996,3]
[330646160,1719684653033,-2176.78,0.00013996,3]
[330646161,1719684653043,-408.3020033,0.00013996,3]
[330646162,1719684653054,-364.5479967,0.00013996,3]
[330646163,1719684653063,-384.08430903,0.00013996,3]
[330646164,1719684653076,-1970.38569097,0.00013996,3]
[330646165,1719684653085,-151.0,0.00013996,2]
[330646166,1719684653094,-4505.2,0.00013996,3]
[330646167,1719684653103,-151.0,0.00013996,2]
[330646168,1719684653113,-2281.12219977,0.00013996,3]
[330646169,1719684653129,-106.03780023,0.00013996,3]
[330646170,1719684653138,-151.0,0.00013996,2]
[330646171,1719684653148,-1493.05154896,0.00013996,3]
[330646172,1719684653159,-746.60009089,0.00013996,3]
[330646173,1719684653170,-443.07349567,0.00013996,3]
[330646174,1719684653182,-3009.55336878,0.00013996,3]
[330646175,1719684653193,-2223.87560059,0.00013996,3]
[330646176,1719684653205,-463.51367634,0.00013996,3]
[330646177,1719684653216,-427.18428536,0.00013996,3]
[330646178,1719684653229,-537.88,0.00013996,3]
[330646179,1719684653240,-768.44720034,0.00013996,3]
[330646180,1719684653252,-341.65759013,0.00013996,3]
[330646181,1719684653263,-699.84660329,0.00013996,3]
[330646182,1719684653325,-40103.56653965,0.00013996,3]
[330646183,1719684653334,-2894.86,0.00013996,3]
[330646184,1719684653343,-4332.33,0.00013996,3]
[330646185,1719684653354,-669.24346035,0.00013996,3]
[330646186,1719684653366,-330.75653965,0.00013996,3]
[330646187,1719684653376,-78.41849078,0.00013996,3]
[330646188,1719684654776,-500.0,0.00013884,3]
[330646189,1719684654787,-146.11840695,0.00013885,3]
[330646190,1719684654799,-353.88159305,0.00013885,3]
[330646191,1719684654808,-500.0,0.00013886,3]
[330646192,1719684654818,-146.65943953,0.00013889,2]
[330646193,1719684654831,-80.36102963,0.00013889,2]
[330646194,1719684654840,-500.0,0.00013993,3]
[330646195,1719684654850,-96.79156854,0.00013995,3]
[330646196,1719684654863,-403.20843146,0.00013995,3]
[330646197,1719684654872,-2249.40150922,0.00013996,3]
[330646198,1719684654882,-1988.81,0.00013996,3]
[330646199,1719684654892,-1762.91,0.00013996,3]
[330646200,1719684654902,-432.45604092,0.00013996,3]
[330646201,1719684654913,-376.63395908,0.00013996,3]
[330646202,1719684654923,-151.0,0.00013996,2]
[330646203,1719684654933,-366.994813,0.00013996,3]
[330646204,1719684654951,-620.425187,0.00013996,3]
[330646205,1719684654961,-2632.29,0.00013996,3]
[330646206,1719684654971,-221.889689,0.00013996,2]
[330646207,1719684654981,-1420.43,0.00013996,3]
[330646208,1719684654992,-2002.78,0.00013996,3]
[330646209,1719684655002,-2541.61,0.00013996,3]
[330646210,1719684655012,-500.0,0.00013996,2]
[330646211,1719684655023,-1707.32,0.00013996,3]
[330646212,1719684655033,-500.0,0.00013996,3]
[330646213,1719684655044,-512.90207934,0.00013996,3]
[330646214,1719684655054,-1671.02,0.00013996,3]
[330646215,1719684655065,-2253.32,0.00013996,3]
[330646216,1719684655077,-7158.8,0.00013996,3]
[330646217,1719684655087,-2573.45,0.00013996,3]
[330646218,1719684655098,-3573.46,0.00013996,3]
[330646219,1719684655108,-2585.77,0.00013996,3]
[330646220,1719684655118,-1581.95,0.00013996,3]
[330646221,1719684655128,-2175.83797043,0.00013996,3]
[330646222,1719684655142,-4472.95202957,0.00013996,3]
[330646223,1719684655152,-740.5,0.00013996,3]
[330646224,1719684655161,-1772.14,0.00013996,3]
[330646225,1719684655171,-2181.57,0.00013996,3]
[330646226,1719684655182,-1084.09,0.00013996,3]
[330646227,1719684655192,-325.7097764,0.00013996,3]
[330646228,1719684655205,-2083.4502236,0.00013996,3]
[330646229,1719684655215,-500.0,0.00013996,3]
[330646230,1719684655226,-7779.27,0.00013996,3]
[330646231,1719684655237,-500.0,0.00013996,3]
[330646232,1719684655247,-1156.61,0.00013996,3]
[330646233,1719684655257,-188.874782,0.00013996,2]
[330646234,1719684655267,-188.874782,0.00013996,2]
[330646235,1719684655277,-3207.79,0.00013996,3]
[330646236,1719684655287,-5639.53,0.00013996,3]
[330646237,1719684655298,-1028.08,0.00013996,3]
[330646238,1719684655308,-2019.89,0.00013996,3]
[330646239,1719684655317,-2613.5656495,0.00013996,3]
[330646240,1719684655332,-244.5143505,0.00013996,3]
[330646241,1719684655344,-1778.29,0.00013996,3]
[330646242,1719684655354,-151.0,0.00013996,2]
[330646243,1719684655365,-1677.29,0.00013996,3]
[330646244,1719684655375,-151.0,0.00013996,2]
[330646245,1719684655386,-1561.23,0.00013996,3]
[330646246,1719684655396,-1764.19,0.00013996,3]
[330646247,1719684655406,-1655.39,0.00013996,3]
[330646248,1719684655416,-493.508557,0.00013996,2]
[330646249,1719684655427,-493.508557,0.00013996,2]
[330646250,1719684655437,-151.0,0.00013996,2]
[330646251,1719684655452,-500.0,0.00013996,3]
[330646252,1719684655462,-877.67,0.00013996,3]
[330646253,1719684655473,-8283.48,0.00013996,3]
[330646254,1719684655483,-500.0,0.00013996,3]
[330646255,1719684655494,-1166.33,0.00013996,3]
[330646256,1719684655505,-2307.27,0.00013996,3]
[330646257,1719684655515,-4239.79,0.00013996,3]
[330646258,1719684655529,-500.0,0.00013996,3]
[330646259,1719684655540,-256.272858,0.00013996,2]
[330646260,1719684655550,-256.272858,0.00013996,2]
[330646261,1719684655562,-151.0,0.00013996,2]
[330646262,1719684655573,-2627.63,0.00013996,3]
[330646263,1719684655584,-151.0,0.00013996,2]
[330646264,1719684655594,-1300.12,0.00013996,3]
[330646265,1719684655605,-2697.28,0.00013996,3]
[330646266,1719684655616,-2190.42,0.00013996,3]
[330646267,1719684655626,-1923.62,0.00013996,3]
[330646268,1719684655636,-151.0,0.00013996,2]
[330646269,1719684655646,-500.0,0.00013996,3]
[330646270,1719684655656,-500.0,0.00013996,3]
[330646271,1719684655666,-4108.69,0.00013996,3]
[330646272,1719684655676,-500.0,0.00013996,3]
[330646273,1719684655686,-291.57796761,0.00013997,3]
[330646274,1719684655696,-492.11830123,0.00013997,3]
[330646275,1719684655706,-1297.28,0.00013997,3]
[330646276,1719684655716,-1654.07,0.00013997,3]
[330646277,1719684655726,-500.0,0.00013997,3]
[330646278,1719684655736,-500.0,0.00013997,3]
[330646279,1719684655746,-500.0,0.00013997,3]
[330646280,1719684655756,-1137.37,0.00013997,3]
[330646281,1719684655766,-963.71,0.00013997,3]
[330646282,1719684655776,-500.0,0.00013997,3]
[330646283,1719684655786,-612.08,0.00013997,3]
[330646284,1719684655796,-646.75,0.00013997,3]
[330646285,1719684655806,-434.18495896,0.00013997,3]
[330646286,1719684655816,-500.0,0.00013997,3]
[330646287,1719684655827,-781.73,0.00013997,3]
[330646288,1719684655837,-717.38,0.00013997,3]
[330646289,1719684655847,-1210.97,0.00013997,3]
[330646290,1719684655856,-1274.16,0.00013997,3]
[330646291,1719684655866,-1050.24,0.00013997,3]
[330646292,1719684655876,-500.0,0.00013997,3]
[330646293,1719684655887,-1630.27,0.00013997,3]
[330646294,1719684655897,-500.0,0.00013997,3]
[330646295,1719684655907,-186.68532852,0.00013997,3]
[330646296,1719684655917,-500.0,0.00013997,3]
[330646297,1719684655928,-1424.96,0.00013997,3]
[330646298,1719684655939,-500.0,0.00013997,3]
[330646299,1719684655949,-500.0,0.00013997,3]
[330646300,1719684655963,-500.0,0.00013997,3]
[330646301,1719684655973,-712.48,0.00013997,3]
[330646302,1719684655984,-1268.31,0.00013997,3]
[330646303,1719684655994,-500.0,0.00013997,3]
[330646304,1719684656003,-1507.24,0.00013997,3]
[330646305,1719684656013,-851.35,0.00013997,3]
[330646306,1719684656023,-1013.52,0.00013997,3]
[330646307,1719684656033,-739.44,0.00013997,3]
[330646308,1719684656043,-606.2632976,0.00013997,3]
[330646309,1719684656053,-869.23,0.00013997,3]
[330646310,1719684656062,-500.0,0.00013997,3]
[330646311,1719684656072,-500.0,0.00013997,3]
[330646312,1719684656082,-1612.7,0.00013997,3]
[330646313,1719684656092,-928.19,0.00013997,3]
[330646314,1719684656102,-1287.17,0.00013997,3]
[330646315,1719684656111,-500.0,0.00013997,3]
[330646316,1719684656121,-621.62,0.00013997,3]
[330646317,1719684656131,-532.98,0.00013997,3]
[330646318,1719684656141,-1190.37,0.00013997,3]
[330646319,1719684656150,-589.78,0.00013997,3]
[330646320,1719684656160,-500.0,0.00013997,3]
[330646321,1719684656169,-500.0,0.00013997,3]
[330646322,1719684656179,-500.0,0.00013997,3]
[330646323,1719684656189,-581.13,0.00013997,3]
[330646324,1719684656198,-500.0,0.00013997,3]
[330646325,1719684656208,-545.25,0.00013997,3]
[330646326,1719684656218,-564.95,0.00013997,3]
[330646327,1719684656227,-1152.18,0.00013997,3]
[330646328,1719684656238,-1219.26,0.00013997,3]
[330646329,1719684656247,-1391.81,0.00013997,3]
[330646330,1719684656257,-500.0,0.00013997,3]
[330646331,1719684656267,-500.0,0.00013997,3]
[330646332,1719684656277,-500.0,0.00013997,3]
[330646333,1719684656287,-500.0,0.00013997,3]
[330646334,1719684656296,-500.0,0.00013997,3]
[330646335,1719684656307,-698.08,0.00013997,3]
[330646336,1719684656316,-1744.62,0.00013997,3]
[330646337,1719684656327,-1467.92,0.00013997,3]
[330646338,1719684656337,-500.0,0.00013997,3]
[330646339,1719684656347,-202.60070959,0.00013997,3]
[330646340,1719684656357,-500.0,0.00013997,3]
[330646341,1719684656367,-500.0,0.00013997,3]
[330646342,1719684656376,-290.04,0.00013997,3]
[330646343,1719684656386,-775.92,0.00013997,3]
[330646344,1719684656396,-500.0,0.00013997,3]
[330646345,1719684656406,-500.0,0.00013997,3]
[330646346,1719684656416,-932.41,0.00013997,3]
[330646347,1719684656427,-500.0,0.00013997,3]
[330646348,1719684656436,-500.0,0.00013997,3]
[330646349,1719684656447,-500.0,0.00013997,3]
[330646350,1719684656456,-500.0,0.00013997,3]
[330646351,1719684656466,-500.0,0.00013997,3]
[330646352,1719684656478,-562.2,0.00013997,3]
[330646353,1719684656489,-500.0,0.00013997,3]
[330646354,1719684656499,-641.84,0.00013997,3]
[330646355,1719684656509,-500.0,0.00013997,3]
[330646356,1719684656521,-500.0,0.00013997,3]
[330646357,1719684656532,-500.0,0.00013997,3]
[330646358,1719684656542,-156.9243133,0.00013997,3]
[330646359,1719684656552,-500.0,0.00013997,3]
[330646360,1719684656562,-500.0,0.00013997,3]
[330646361,1719684656574,-671.4,0.00013997,3]
[330646362,1719684656583,-500.0,0.00013997,3]
[330646363,1719684656592,-300.5365544,0.00013997,3]
[330646364,1719684656603,-1309.04,0.00013997,3]
[330646365,1719684656613,-871.19,0.00013997,3]
[330646366,1719684656622,-531.27,0.00013997,3]
[330646367,1719684656632,-500.0,0.00013997,3]
[330646368,1719684656641,-958.24,0.00013997,3]
[330646369,1719684656662,-500.0,0.00013997,3]
[330646370,1719684656672,-500.0,0.00013997,3]
[330646371,1719684656682,-1124.8,0.00013997,3]
[330646372,1719684656692,-500.0,0.00013997,3]
[330646373,1719684656702,-500.0,0.00013997,3]
[330646374,1719684656712,-500.0,0.00013997,3]
[330646375,1719684656722,-623.63,0.00013997,3]
[330646376,1719684656732,-500.0,0.00013997,3]
[330646377,1719684656742,-566.92,0.00013997,3]
[330646378,1719684656754,-500.0,0.00013997,3]
[330646379,1719684656765,-1640.85,0.00013997,3]
[330646380,1719684656775,-712.19,0.00013997,3]
[330646381,1719684656785,-700.23,0.00013997,3]
[330646382,1719684656795,-752.62,0.00013997,3]
[330646383,1719684656805,-500.0,0.00013997,3]
[330646384,1719684656815,-500.0,0.00013997,3]
[330646385,1719684656826,-500.0,0.00013997,3]
[330646386,1719684656835,-681.89,0.00013997,3]
[330646387,1719684656845,-2500.0,0.00013997,3]
[330646388,1719684656856,-1628.49,0.00013997,3]
[330646389,1719684656866,-500.0,0.00013997,3]
[330646390,1719684656876,-500.0,0.00013997,3]
[330646391,1719684656886,-1230.38,0.00013997,3]
[330646392,1719684656895,-500.47679048,0.00013997,3]